fUST/lending_fUST_20250912
["ID","MTS","AMOUNT","RATE_DAILY","PERIOD"]
[385154784,1757674264303,-158.49,0.00015342,2]
[385154785,1757674264390,-480.0,0.00015342,2]
[385154786,1757674264400,-480.0,0.00015342,2]
[385154787,1757674264411,-480.0,0.00015342,2]
[385154788,1757674264421,-480.0,0.00015342,2]
[385154789,1757674264431,-480.0,0.00015342,2]
[385154790,1757674264440,-480.0,0.00015342,2]
[385154791,1757674264450,-415.58054322,0.00015342,2]
[385154792,1757674264459,-480.0,0.00015342,2]
[385154793,1757674264469,-480.0,0.00015342,2]
[385154794,1757674264480,-1843.46,0.00015342,2]
[385154795,1757674264491,-480.0,0.00015342,2]
[385154796,1757674264500,-480.0,0.00015342,2]
[385154797,1757674264510,-480.0,0.00015342,2]
[385154798,1757674264519,-389.85,0.00015342,2]
[385154799,1757674264529,-522.85,0.00015342,2]
[385154800,1757674264539,-163.70054727,0.00015342,2]
[385154801,1757674264549,-480.0,0.00015342,2]
[385154802,1757674264559,-480.0,0.00015342,2]
[385154803,1757674264569,-480.0,0.00015342,2]
[385154804,1757674264578,-480.0,0.00015342,2]
[385154805,1757674264588,-1115.42,0.00015342,2]
[385154806,1757674264598,-480.0,0.00015342,2]
[385154807,1757674264608,-480.0,0.00015342,2]
[385154808,1757674264617,-480.0,0.00015342,2]
[385154809,1757674264626,-155.56673715,0.00015342,2]
[385154810,1757674264636,-820.2,0.00015342,2]
[385154811,1757674264646,-540.0,0.00015342,2]
[385154812,1757674264655,-480.0,0.00015342,2]
[385154813,1757674264665,-720.0,0.00015368,2]
[385154814,1757674264674,-217.38167397,0.00015406,2]
[385154815,1757674264685,-151.0,0.00015406,2]
[385154816,1757674264695,-18603.8837,0.00015406,2]
[385154817,1757674264705,-151.0,0.00015406,2]
[385154818,1757674264715,-151.0,0.00015406,2]
[385154819,1757674264725,-561.26,0.00015616,2]
[385154820,1757674264737,-480.0,0.00015616,2]
[385154821,1757674264746,-480.0,0.00015616,2]
[385154822,1757674264756,-480.0,0.00015616,2]
[385154823,1757674264767,-480.0,0.00015616,2]
[385154824,1757674264778,-480.0,0.00015616,2]
[385154825,1757674264788,-480.0,0.00015616,2]
[385154826,1757674264799,-480.0,0.00015616,2]
[385154827,1757674264811,-480.0,0.00015616,2]
[385154828,1757674264821,-480.0,0.00015616,2]
[385154829,1757674264831,-480.0,0.00015616,2]
[385154830,1757674264841,-480.0,0.00015616,2]
[385154831,1757674264851,-332.5,0.00015616,2]
[385154832,1757674264861,-363.34559256,0.00015616,2]
[385154833,1757674264870,-480.0,0.00015616,2]
[385154834,1757674264880,-480.0,0.00015616,2]
[385154835,1757674264890,-480.0,0.00015616,2]
[385154836,1757674264901,-480.0,0.00015616,2]
[385154837,1757674264912,-480.0,0.00015616,2]
[385154838,1757674264923,-480.0,0.00015616,2]
[385154839,1757674264933,-480.0,0.00015616,2]
[385154840,1757674264943,-2407.26,0.00015616,2]
[385154841,1757674264953,-480.0,0.00015616,2]
[385154842,1757674264963,-604.07,0.00015616,2]
[385154843,1757674264973,-480.0,0.00015616,2]
[385154844,1757674264982,-480.0,0.00015616,2]
[385154845,1757674264993,-480.0,0.00015616,2]
[385154846,1757674265014,-480.0,0.00015616,2]
[385154847,1757674265029,-480.0,0.00015616,2]
[385154848,1757674265047,-480.0,0.00015616,2]
[385154849,1757674265068,-480.0,0.00015616,2]
[385154850,1757674265087,-480.0,0.00015616,2]
[385154851,1757674265103,-480.0,0.00015616,2]
[385154852,1757674265121,-1843.46,0.00015616,2]
[385154853,1757674265136,-208.87577317,0.00015616,2]
[385154854,1757674265150,-480.0,0.00015616,2]
[385154855,1757674265167,-480.0,0.00015616,2]
[385154856,1757674265187,-522.85,0.00015616,2]
[385154857,1757674265204,-480.0,0.00015616,2]
[385154858,1757674265216,-480.0,0.00015616,2]
[385154859,1757674265236,-480.0,0.00015616,2]
[385154860,1757674265250,-480.0,0.00015616,2]
[385154861,1757674265267,-1115.42,0.00015616,2]
[385154862,1757674265280,-480.0,0.00015616,2]
[385154863,1757674265294,-480.0,0.00015616,2]
[385154864,1757674265309,-480.0,0.00015616,2]
[385154865,1757674265323,-820.2,0.00015616,2]
[385154866,1757674265337,-540.0,0.00015616,2]
[385154867,1757674265352,-480.0,0.00015616,2]
[385154868,1757674265366,-2000.0,0.00015616,2]
[385154869,1757674265382,-1904.76131982,0.0001579,2]
[385154870,1757674265397,-2500.0,0.00015864,2]
[385154871,1757674265412,-2500.0,0.00015864,2]
[385154872,1757674265427,-2500.0,0.00015864,2]
[385154873,1757674265442,-480.0,0.0001589,2]
[385154874,1757674265456,-403.04,0.0001589,2]
[385154875,1757674265468,-159.786639,0.0001589,2]
[385154876,1757674265478,-151.0,0.0001589,2]
[385154877,1757674265487,-151.0,0.0001589,2]
[385154878,1757674265498,-151.0,0.0001589,2]
[385154879,1757674265509,-151.0,0.0001589,2]
[385154880,1757674265519,-151.0,0.0001589,2]
[385154881,1757674265530,-480.0,0.0001589,2]
[385154882,1757674265540,-480.0,0.0001589,2]
[385154883,1757674265549,-480.0,0.0001589,2]
[385154884,1757674265559,-480.0,0.0001589,2]
[385154885,1757674265568,-560.32171537,0.0001589,2]
[385154886,1757674265579,-358.71,0.0001589,2]
[385154887,1757674265590,-480.0,0.0001589,2]
[385154888,1757674265601,-480.0,0.0001589,2]
[385154889,1757674265611,-196.07322629,0.0001589,2]
[385154890,1757674265621,-480.0,0.0001589,2]
[385154891,1757674265631,-480.0,0.0001589,2]
[385154892,1757674265640,-480.0,0.0001589,2]
[385154893,1757674265650,-2407.26,0.0001589,2]
[385154894,1757674265660,-480.0,0.0001589,2]
[385154895,1757674265670,-604.07,0.0001589,2]
[385154896,1757674265680,-161.5561463,0.0001589,2]
[385154897,1757674265690,-480.0,0.0001589,2]
[385154898,1757674265700,-480.0,0.0001589,2]
[385154899,1757674265710,-480.0,0.0001589,2]
[385154900,1757674265720,-480.0,0.0001589,2]
[385154901,1757674265730,-480.0,0.0001589,2]
[385154902,1757674265742,-480.0,0.0001589,2]
[385154903,1757674265751,-480.0,0.0001589,2]
[385154904,1757674265761,-415.86000148,0.0001589,2]
[385154905,1757674265771,-1843.46,0.0001589,2]
[385154906,1757674265781,-480.0,0.0001589,2]
[385154907,1757674266010,-480.0,0.0001589,2]
[385154908,1757674266021,-522.85,0.0001589,2]
[385154909,1757674266031,-480.0,0.0001589,2]
[385154910,1757674266040,-480.0,0.0001589,2]
[385154911,1757674266051,-419.23086615,0.0001589,2]
[385154912,1757674266060,-600.85,0.0001589,2]
[385154913,1757674266070,-1115.42,0.0001589,2]
[385154914,1757674266079,-480.0,0.0001589,2]
[385154915,1757674266090,-234.85985815,0.0001589,2]
[385154916,1757674266100,-480.0,0.0001589,2]
[385154917,1757674266111,-820.2,0.0001589,2]
[385154918,1757674266120,-540.0,0.0001589,2]
[385154919,1757674266129,-480.0,0.0001589,2]
[385154920,1757674266139,-14812.36988539,0.00015954,2]
[385154921,1757674266148,-480.0,0.00016164,2]
[385154922,1757674266158,-480.0,0.00016164,2]
[385154923,1757674266167,-581.95,0.00016164,2]
[385154924,1757674266177,-480.0,0.00016164,2]
[385154925,1757674266187,-480.0,0.00016164,2]
[385154926,1757674266196,-480.0,0.00016164,2]
[385154927,1757674266205,-194.16379098,0.00016164,2]
[385154928,1757674266214,-480.0,0.00016164,2]
[385154929,1757674266224,-480.0,0.00016164,2]
[385154930,1757674266233,-480.0,0.00016164,2]
[385154931,1757674266243,-2407.26,0.00016164,2]
[385154932,1757674266252,-480.0,0.00016164,2]
[385154933,1757674266262,-604.07,0.00016164,2]
[385154934,1757674266271,-480.0,0.00016164,2]
[385154935,1757674266280,-480.0,0.00016164,2]
[385154936,1757674266289,-480.0,0.00016164,2]
[385154937,1757674266299,-480.0,0.00016164,2]
[385154938,1757674266309,-482.98,0.00016164,2]
[385154939,1757674266319,-186.95,0.00016164,2]
[385154940,1757674266328,-1843.46,0.00016164,2]
[385154941,1757674266337,-480.0,0.00016164,2]
[385154942,1757674266347,-480.0,0.00016164,2]
[385154943,1757674266357,-522.85,0.00016164,2]
[385154944,1757674266366,-480.39649784,0.00016164,2]
[385154945,1757674266375,-480.0,0.00016164,2]
[385154946,1757674266385,-1115.42,0.00016164,2]
[385154947,1757674266394,-480.0,0.00016164,2]
[385154948,1757674266404,-480.0,0.00016164,2]
[385154949,1757674266414,-820.2,0.00016164,2]
[385154950,1757674266423,-540.0,0.00016164,2]
[385154951,1757674266432,-324.11930051,0.00016164,2]
[385154952,1757674266441,-2500.0,0.00016164,2]
[385154953,1757674266451,-1797.92872535,0.00016412,2]
[385154954,1757674266460,-2500.0,0.00016412,2]
[385154955,1757674266469,-1500.0,0.00016412,2]
[385154956,1757674266478,-352.82865398,0.00016438,2]
[385154957,1757674266488,-480.0,0.00016438,2]
[385154958,1757674266497,-480.0,0.00016438,2]
[385154959,1757674266507,-480.0,0.00016438,2]
[385154960,1757674266516,-480.0,0.00016438,2]
[385154961,1757674266525,-480.0,0.00016438,2]
[385154962,1757674266535,-405.03,0.00016438,2]
[385154963,1757674266544,-480.0,0.00016438,2]
[385154964,1757674266553,-480.0,0.00016438,2]
[385154965,1757674266563,-2407.26,0.00016438,2]
[385154966,1757674266572,-480.0,0.00016438,2]
[385154967,1757674266581,-604.07,0.00016438,2]
[385154968,1757674266591,-480.0,0.00016438,2]
[385154969,1757674266600,-480.0,0.00016438,2]
[385154970,1757674266609,-480.0,0.00016438,2]
[385154971,1757674266619,-480.0,0.00016438,2]
[385154972,1757674266628,-1843.46,0.00016438,2]
[385154973,1757674266638,-480.0,0.00016438,2]
[385154974,1757674266647,-480.0,0.00016438,2]
[385154975,1757674266657,-522.85,0.00016438,2]
[385154976,1757674266666,-480.0,0.00016438,2]
[385154977,1757674266676,-1115.42,0.00016438,2]
[385154978,1757674266686,-480.0,0.00016438,2]
[385154979,1757674266695,-320.0,0.00016438,2]
[385154980,1757674266704,-820.2,0.00016438,2]
[385154981,1757674266713,-540.0,0.00016438,2]
[385154982,1757674266722,-151.0,0.00016438,2]
[385154983,1757674266732,-151.0,0.00016438,2]
[385154984,1757674266744,-151.0,0.00016438,2]
[385154985,1757674266753,-151.734799,0.00016438,2]
[385154986,1757674266763,-480.0,0.00016712,2]
[385154987,1757674266772,-480.0,0.00016712,2]
[385154988,1757674266783,-480.0,0.00016712,2]
[385154989,1757674266792,-480.0,0.00016712,2]
[385154990,1757674266804,-480.0,0.00016712,2]
[385154991,1757674266814,-480.0,0.00016712,2]
[385154992,1757674266824,-480.0,0.00016712,2]
[385154993,1757674266834,-2407.26,0.00016712,2]
[385154994,1757674266848,-480.0,0.00016712,2]
[385154995,1757674266861,-604.07,0.00016712,2]
[385154996,1757674266871,-368.55,0.00016712,2]
[385154997,1757674266880,-480.0,0.00016712,2]
[385154998,1757674266890,-480.0,0.00016712,2]
[385154999,1757674266900,-480.0,0.00016712,2]
[385155000,1757674266909,-1843.46,0.00016712,2]
[385155001,1757674266919,-480.0,0.00016712,2]
[385155002,1757674266929,-480.0,0.00016712,2]
[385155003,1757674266939,-522.85,0.00016712,2]
[385155004,1757674266949,-480.0,0.00016712,2]
[385155005,1757674266959,-1115.42,0.00016712,2]
[385155006,1757674266968,-480.0,0.00016712,2]
[385155007,1757674266978,-820.2,0.00016712,2]
[385155008,1757674266988,-540.0,0.00016712,2]
[385155009,1757674266997,-3000.0,0.00016712,2]
[385155010,1757674267006,-864.0,0.00016905,2]
[385155011,1757674267016,-151.0,0.00016986,2]
[385155012,1757674267025,-157.0661181,0.00016986,2]
[385155013,1757674267034,-157.09091652,0.00016986,2]
[385155014,1757674267043,-157.20307173,0.00016986,2]
[385155015,1757674267052,-157.00411875,0.00016986,2]
[385155016,1757674267062,-500.0,0.00016986,2]
[385155017,1757674267071,-305.31043833,0.00016986,2]
[385155018,1757674267080,-248.13637627,0.00016986,2]
[385155019,1757674267089,-157.0,0.00016986,2]
[385155020,1757674267098,-157.0,0.00016986,2]
[385155021,1757674267107,-500.0,0.00016986,2]
[385155022,1757674267116,-157.0,0.00016986,2]
[385155023,1757674267125,-157.0,0.00016986,2]
[385155024,1757674267134,-157.0,0.00016986,2]
[385155025,1757674267143,-480.0,0.00016986,2]
[385155026,1757674267152,-480.0,0.00016986,2]
[385155027,1757674267162,-480.0,0.00016986,2]
[385155028,1757674267171,-157.0,0.00016986,2]
[385155029,1757674267180,-480.0,0.00016986,2]
[385155030,1757674267189,-157.0,0.00016986,2]
[385155031,1757674267198,-157.0,0.00016986,2]
[385155032,1757674267207,-248.97963686,0.00016986,2]
[385155033,1757674267216,-157.0,0.00016986,2]
[385155034,1757674267225,-500.0,0.00016986,2]
[385155035,1757674267234,-157.0,0.00016986,2]
[385155036,1757674267243,-500.0,0.00016986,2]
[385155037,1757674267252,-157.0,0.00016986,2]
[385155038,1757674267262,-157.0,0.00016986,2]
[385155039,1757674267272,-500.0,0.00016986,2]
[385155040,1757674267281,-157.0,0.00016986,2]
[385155041,1757674267291,-157.0,0.00016986,2]
[385155042,1757674267301,-157.0,0.00016986,2]
[385155043,1757674267310,-157.0,0.00016986,2]
[385155044,1757674267320,-157.0,0.00016986,2]
[385155045,1757674267329,-157.0,0.00016986,2]
[385155046,1757674267339,-480.0,0.00016986,2]
[385155047,1757674267348,-480.0,0.00016986,2]
[385155048,1757674267357,-2407.26,0.00016986,2]
[385155049,1757674267367,-480.0,0.00016986,2]
[385155050,1757674267377,-604.07,0.00016986,2]
[385155051,1757674267386,-480.0,0.00016986,2]
[385155052,1757674267395,-480.0,0.00016986,2]
[385155053,1757674267404,-1843.46,0.00016986,2]
[385155054,1757674267414,-480.0,0.00016986,2]
[385155055,1757674267422,-480.0,0.00016986,2]
[385155056,1757674267431,-522.85,0.00016986,2]
[385155057,1757674267441,-480.0,0.00016986,2]
[385155058,1757674267449,-1115.42,0.00016986,2]
[385155059,1757674267459,-500.0,0.00016986,2]
[385155060,1757674267474,-157.0,0.00016986,2]
[385155061,1757674267494,-157.11565503,0.00016986,2]
[385155062,1757674267504,-500.0,0.00016986,2]
[385155063,1757674267514,-500.0,0.00016986,2]
[385155064,1757674267523,-157.0,0.00016986,2]
[385155065,1757674267533,-157.0,0.00016986,2]
[385155066,1757674267541,-480.0,0.00016986,2]
[385155067,1757674267551,-820.2,0.00016986,2]
[385155068,1757674267560,-540.0,0.00016986,2]
[385155069,1757674267569,-151.0,0.00017016,2]
[385155070,1757674267579,-1904.76131978,0.00017187,2]
[385155071,1757674267588,-500.0,0.0001726,2]
[385155072,1757674267598,-157.0,0.0001726,2]
[385155073,1757674267608,-157.0,0.0001726,2]
[385155074,1757674267617,-500.0,0.0001726,2]
[385155075,1757674267627,-157.0,0.0001726,2]
[385155076,1757674267636,-238.85481629,0.0001726,2]
[385155077,1757674267645,-157.0,0.0001726,2]
[385155078,1757674267654,-157.0,0.0001726,2]
[385155079,1757674267664,-234.97757122,0.0001726,2]
[385155080,1757674267673,-186.00463938,0.0001726,2]
[385155081,1757674267682,-157.0,0.0001726,2]
[385155082,1757674267691,-500.0,0.0001726,2]
[385155083,1757674267700,-157.0,0.0001726,2]
[385155084,1757674267710,-500.0,0.0001726,2]
[385155085,1757674267719,-157.0,0.0001726,2]
[385155086,1757674267728,-500.0,0.0001726,2]
[385155087,1757674267738,-157.0,0.0001726,2]
[385155088,1757674267750,-193.33159042,0.0001726,2]
[385155089,1757674267759,-171.4832997,0.0001726,2]
[385155090,1757674267769,-157.0,0.0001726,2]
[385155091,1757674267779,-157.0,0.0001726,2]
[385155092,1757674267789,-500.0,0.0001726,2]
[385155093,1757674267798,-230.03803334,0.0001726,2]
[385155094,1757674267807,-500.0,0.0001726,2]
[385155095,1757674267817,-500.0,0.0001726,2]
[385155096,1757674267827,-169.20345706,0.0001726,2]
[385155097,1757674267836,-480.0,0.0001726,2]
[385155098,1757674267845,-151.0,0.0001726,2]
[385155099,1757674267855,-480.0,0.0001726,2]
[385155100,1757674267864,-480.0,0.0001726,2]
[385155101,1757674267874,-480.0,0.0001726,2]
[385155102,1757674267883,-480.0,0.0001726,2]
[385155103,1757674267892,-480.0,0.0001726,2]
[385155104,1757674267901,-2407.26,0.0001726,2]
[385155105,1757674267910,-480.0,0.0001726,2]
[385155106,1757674267919,-604.07,0.0001726,2]
[385155107,1757674267929,-480.0,0.0001726,2]
[385155108,1757674267938,-176.03,0.0001726,2]
[385155109,1757674267947,-1843.46,0.0001726,2]
[385155110,1757674267957,-480.0,0.0001726,2]
[385155111,1757674267966,-522.85,0.0001726,2]
[385155112,1757674267975,-480.0,0.0001726,2]
[385155113,1757674267985,-1115.42,0.0001726,2]
[385155114,1757674267994,-480.0,0.0001726,2]
[385155115,1757674268004,-820.2,0.0001726,2]
[385155116,1757674268013,-540.0,0.0001726,2]
[385155117,1757674268023,-167.42701485,0.0001726,2]
[385155118,1757674268032,-262.91719274,0.00017534,2]
[385155119,1757674268043,-157.0,0.00017534,2]
[385155120,1757674268052,-157.0,0.00017534,2]
[385155121,1757674268061,-157.0,0.00017534,2]
[385155122,1757674268070,-157.0,0.00017534,2]
[385155123,1757674268080,-242.20433611,0.00017534,2]
[385155124,1757674268090,-207.02705941,0.00017534,2]
[385155125,1757674268099,-326.57383559,0.00017534,2]
[385155126,1757674268108,-277.0918819,0.00017534,2]
[385155127,1757674268117,-473.06067573,0.00017534,2]
[385155128,1757674268127,-157.0,0.00017534,2]
[385155129,1757674268137,-500.0,0.00017534,2]
[385155130,1757674268146,-157.0,0.00017534,2]
[385155131,1757674268156,-157.0,0.00017534,2]
[385155132,1757674268165,-186.0,0.00017534,2]
[385155133,1757674268176,-500.0,0.00017534,2]
[385155134,1757674268186,-500.0,0.00017534,2]
[385155135,1757674268195,-500.0,0.00017534,2]
[385155136,1757674268205,-210.78091899,0.00017534,2]
[385155137,1757674268214,-579.96,0.00017534,2]
[385155138,1757674268224,-484.98,0.00017534,2]
[385155139,1757674268233,-206.45,0.00017534,2]
[385155140,1757674268242,-480.0,0.00017534,2]
[385155141,1757674268251,-480.0,0.00017534,2]
[385155142,1757674268261,-2407.26,0.00017534,2]
[385155143,1757674268271,-480.0,0.00017534,2]
[385155144,1757674268279,-604.07,0.00017534,2]
[385155145,1757674268288,-480.0,0.00017534,2]
[385155146,1757674268298,-1843.46,0.00017534,2]
[385155147,1757674268307,-480.0,0.00017534,2]
[385155148,1757674268316,-522.85,0.00017534,2]
[385155149,1757674268325,-480.0,0.00017534,2]
[385155150,1757674268335,-1115.42,0.00017534,2]
[385155151,1757674268344,-480.0,0.00017534,2]
[385155152,1757674268354,-820.2,0.00017534,2]
[385155153,1757674268363,-540.0,0.00017534,2]
[385155154,1757674268372,-151.0,0.00017749,2]
[385155155,1757674268381,-151.0,0.00017749,2]
[385155156,1757674268390,-261.21531837,0.00017808,2]
[385155157,1757674268400,-157.0,0.00017808,2]
[385155158,1757674268409,-157.0,0.00017808,2]
[385155159,1757674268419,-500.0,0.00017808,2]
[385155160,1757674268428,-284.33140433,0.00017808,2]
[385155161,1757674268437,-249.7417111,0.00017808,2]
[385155162,1757674268446,-500.0,0.00017808,2]
[385155163,1757674268455,-500.0,0.00017808,2]
[385155164,1757674268464,-480.0,0.00017808,2]
[385155165,1757674268473,-480.0,0.00017808,2]
[385155166,1757674268482,-2407.26,0.00017808,2]
[385155167,1757674268491,-480.0,0.00017808,2]
[385155168,1757674268500,-604.07,0.00017808,2]
[385155169,1757674268509,-480.0,0.00017808,2]
[385155170,1757674268518,-1843.46,0.00017808,2]
[385155171,1757674268527,-513.14133461,0.00017808,2]
[385155172,1757674268536,-522.85,0.00017808,2]
[385155173,1757674268545,-480.0,0.00017808,2]
[385155174,1757674268553,-1115.42,0.00017808,2]
[385155175,1757674268563,-480.0,0.00017808,2]
[385155176,1757674268572,-820.2,0.00017808,2]
[385155177,1757674268580,-540.0,0.00017808,2]
[385155178,1757674268590,-250.0,0.00018043,2]
[385155179,1757674268599,-157.0,0.00018082,2]
[385155180,1757674268608,-254.64016978,0.00018082,2]
[385155181,1757674268617,-500.0,0.00018082,2]
[385155182,1757674268626,-531.31691441,0.00018082,2]
[385155183,1757674268636,-500.0,0.00018082,2]
[385155184,1757674268644,-480.0,0.00018082,2]
[385155185,1757674268653,-480.0,0.00018082,2]
[385155186,1757674268663,-2407.26,0.00018082,2]
[385155187,1757674268672,-480.0,0.00018082,2]
[385155188,1757674268681,-604.07,0.00018082,2]
[385155189,1757674268690,-480.0,0.00018082,2]
[385155190,1757674268699,-1843.46,0.00018082,2]
[385155191,1757674268709,-522.85,0.00018082,2]
[385155192,1757674268718,-480.0,0.00018082,2]
[385155193,1757674268727,-1115.42,0.00018082,2]
[385155194,1757674268736,-480.0,0.00018082,2]
[385155195,1757674268745,-820.2,0.00018082,2]
[385155196,1757674268759,-540.0,0.00018082,2]
[385155197,1757674268874,-174.93562152,0.00018356,2]
[385155198,1757674268883,-500.0,0.00018356,2]
[385155199,1757674268894,-189.4,0.00018356,2]
[385155200,1757674268904,-480.0,0.00018356,2]
[385155201,1757674268914,-480.0,0.00018356,2]
[385155202,1757674268924,-2407.26,0.00018356,2]
[385155203,1757674268934,-480.0,0.00018356,2]
[385155204,1757674268944,-604.07,0.00018356,2]
[385155205,1757674268953,-480.0,0.00018356,2]
[385155206,1757674268964,-1843.46,0.00018356,2]
[385155207,1757674268974,-522.85,0.00018356,2]
[385155208,1757674268983,-170.25,0.00018356,2]
[385155209,1757674268993,-1115.42,0.00018356,2]
[385155210,1757674269002,-480.0,0.00018356,2]
[385155211,1757674269012,-820.2,0.00018356,2]
[385155212,1757674269021,-540.0,0.00018356,2]
[385155213,1757674269030,-168.648193,0.00018493,2]
[385155214,1757674269040,-1904.76131978,0.00018585,2]
[385155215,1757674269050,-157.0,0.0001863,2]
[385155216,1757674269059,-151.0,0.0001863,2]
[385155217,1757674269068,-151.0,0.0001863,2]
[385155218,1757674269077,-151.0,0.0001863,2]
[385155219,1757674269086,-151.0,0.0001863,2]
[385155220,1757674269096,-497.82131511,0.0001863,2]
[385155221,1757674269105,-480.0,0.0001863,2]
[385155222,1757674269115,-2407.26,0.0001863,2]
[385155223,1757674269124,-480.0,0.0001863,2]
[385155224,1757674269134,-604.07,0.0001863,2]
[385155225,1757674269144,-480.0,0.0001863,2]
[385155226,1757674269155,-1843.46,0.0001863,2]
[385155227,1757674269165,-522.85,0.0001863,2]
[385155228,1757674269174,-1115.42,0.0001863,2]
[385155229,1757674269183,-480.0,0.0001863,2]
[385155230,1757674269192,-820.2,0.0001863,2]
[385155231,1757674269201,-540.0,0.0001863,2]
[385155232,1757674269211,-303.22740084,0.000189,2]
[385155233,1757674269220,-480.0,0.00018904,2]
[385155234,1757674269229,-2407.26,0.00018904,2]
[385155235,1757674269239,-480.0,0.00018904,2]
[385155236,1757674269248,-604.07,0.00018904,2]
[385155237,1757674269258,-480.0,0.00018904,2]
[385155238,1757674269268,-1843.46,0.00018904,2]
[385155239,1757674269277,-522.85,0.00018904,2]
[385155240,1757674269286,-1115.42,0.00018904,2]
[385155241,1757674269295,-480.0,0.00018904,2]
[385155242,1757674269305,-820.2,0.00018904,2]
[385155243,1757674269315,-540.0,0.00018904,2]
[385155244,1757674269324,-303.22740084,0.00019089,2]
[385155245,1757674269333,-400.41124496,0.00019178,2]
[385155246,1757674269343,-2407.26,0.00019178,2]
[385155247,1757674269352,-561.84,0.00019178,2]
[385155248,1757674269363,-604.07,0.00019178,2]
[385155249,1757674269372,-480.0,0.00019178,2]
[385155250,1757674269382,-1843.46,0.00019178,2]
[385155251,1757674269391,-522.85,0.00019178,2]
[385155252,1757674269400,-1115.42,0.00019178,2]
[385155253,1757674269409,-480.0,0.00019178,2]
[385155254,1757674269419,-820.2,0.00019178,2]
[385155255,1757674269428,-540.0,0.00019178,2]
[385155256,1757674269438,-303.22740084,0.00019278,2]
[385155257,1757674269448,-2407.26,0.00019452,2]
[385155258,1757674269457,-604.07,0.00019452,2]
[385155259,1757674269466,-480.0,0.00019452,2]
[385155260,1757674269475,-1843.46,0.00019452,2]
[385155261,1757674269484,-522.85,0.00019452,2]
[385155262,1757674269493,-1115.42,0.00019452,2]
[385155263,1757674269502,-150.25,0.00019452,2]
[385155264,1757674269512,-820.2,0.00019452,2]
[385155265,1757674269521,-540.0,0.00019452,2]
[385155266,1757674269530,-303.22740084,0.00019467,2]
[385155267,1757674269539,-303.22740084,0.00019656,2]
[385155268,1757674269548,-2407.26,0.00019726,2]
[385155269,1757674269557,-604.07,0.00019726,2]
[385155270,1757674269566,-407.81974729,0.00019726,2]
[385155271,1757674269576,-1843.46,0.00019726,2]
[385155272,1757674269585,-522.85,0.00019726,2]
[385155273,1757674269594,-1115.42,0.00019726,2]
[385155274,1757674269603,-820.2,0.00019726,2]
[385155275,1757674269612,-540.0,0.00019726,2]
[385155276,1757674269622,-454.84110126,0.00019845,4]
[385155277,1757674269632,-5012.5027732,0.000199,2]
[385155278,1757674269641,-1904.76131978,0.00019982,2]
[385155279,1757674269650,-2407.33177735,0.0002,2]
[385155280,1757674269659,-604.29,0.0002,2]
[385155281,1757674269668,-1843.56,0.0002,2]
[385155282,1757674269677,-522.98,0.0002,2]
[385155283,1757674269686,-1115.49,0.0002,2]